bitfinex/quotes_ETHUSD_20220106
["timestamp","ask_amount","ask_price","bid_price","bid_amount"]
[1641435612116,0.345,3504.0,3503.9,0.00284212]
[1641435613317,5.0,3504.5,3503.9,0.00284212]
[1641435614149,5.0,3504.5,3503.9,1.35322321]
[1641435614550,5.0,3504.5,3504.0,0.0022737]
[1641435615950,5.0,3504.5,3504.0,0.11348067]
[1641435616352,4.1633,3504.5,3504.2,0.5705843]
[1641435616755,0.00113684,3504.6,3504.2,0.5705843]
[1641435616756,3.684e-05,3504.6,3504.3,0.3]
[1641435616953,3.684e-05,3504.6,3504.4,16.58]
[1641435617152,3.684e-05,3504.6,3504.4,105.84933594]
[1641435617399,3.684e-05,3504.6,3504.5,8.18092178]
[1641435617600,3.684e-05,3504.6,3504.5,10.88092178]
[1641435617803,3.684e-05,3504.6,3504.5,61.78092178]
[1641435618005,3.684e-05,3504.6,3504.5,53.18092178]
[1641435618405,3.684e-05,3504.6,3504.5,63.48092178]
[1641435618606,7.87631547,3509.0,3504.5,63.48092178]
[1641435618607,0.30921434,3507.1,3504.7,16.58]
[1641435618811,0.30921434,3507.1,3505.7,1.38851452]
[1641435619008,0.00795793,3506.0,3505.7,0.37129]
[1641435619207,0.00795793,3506.0,3505.7,0.3]
[1641435619407,0.00738951,3505.9,3505.8,5.2167718]
[1641435619807,0.00738951,3505.9,3505.7,1.1098546]
[1641435620209,0.00682108,3505.8,3505.7,1.1098546]
[1641435625700,0.00682108,3505.8,3505.7,1.4098546]
[1641435625907,0.00682108,3505.8,3505.7,1.7098546]
[1641435626101,0.00682108,3505.8,3505.7,9.8098546]
[1641435626500,0.00682108,3505.8,3505.7,1.7098546]
[1641435627501,0.00682108,3505.8,3505.7,1.4098546]
[1641435627701,0.00682108,3505.8,3505.7,1.1098546]
[1641435629371,2.108e-05,3505.8,3505.7,1.4098546]
[1641435629568,2.108e-05,3505.8,3505.7,109.62881136]
[1641435629767,10.0,3506.0,3505.8,8.1]
[1641435629968,6.0488,3506.0,3505.9,10.53208377]
[1641435630168,0.345,3508.0,3506.0,4.2988]
[1641435630371,0.345,3508.0,3506.1,2.72261484]
[1641435630568,0.345,3508.0,3507.3,1.34950526]
[1641435630767,0.345,3508.0,3507.4,1.48011168]
[1641435631768,0.01261591,3507.5,3505.9,1.2500959]
[1641435631972,0.01261591,3507.5,3505.7,3.69984031]
[1641435631973,0.35761591,3507.5,3505.7,3.69984031]
[1641435632167,0.00909478,3507.4,3505.7,3.69984031]
[1641435632398,0.345,3507.3,3505.7,3.69984031]
[1641435632600,0.35352636,3507.3,3505.3,8.6331]
[1641435632800,3.76745793,3507.2,3506.8,1.34371713]
[1641435633007,0.345,3507.1,3506.8,1.34371713]
[1641435633203,1.35238951,3507.1,3506.8,1.34371713]
[1641435633404,0.00682109,3507.0,3506.8,1.34371713]
[1641435633604,0.35182109,3507.0,3506.8,1.34371713]
[1641435633805,0.00625266,3506.9,3506.8,1.34371713]
[1641435634006,0.00625266,3506.9,3506.8,2.71022829]
[1641435634613,0.00625266,3506.9,3506.8,3.31022829]
[1641435635016,0.00625266,3506.9,3506.8,2.71022829]
[1641435635609,0.00625266,3506.9,3506.8,19.29022829]
[1641435636009,0.00625266,3506.9,3506.8,19.32301604]
[1641435636251,4.9207,3508.7,3506.8,19.32301604]
[1641435636252,8.97308451,3509.6,3506.9,8.15]
[1641435636451,2.0,3509.5,3507.6,0.71246]
[1641435636654,0.01278233,3509.7,3508.1,0.07124]
[1641435636950,0.01278233,3509.7,3507.7,0.3]
[1641435636951,0.01278233,3509.7,3507.9,1.28267431]
[1641435637153,0.01278233,3509.7,3508.5,1.34292817]
[1641435637551,0.01278233,3509.7,3508.5,0.6]
[1641435637750,0.01278233,3509.7,3508.0,14.70587448]
[1641435637950,2.13819997,3509.8,3508.1,14.10587448]
[1641435637951,6.18252897,3508.8,3508.1,14.10587448]
[1641435640226,0.01252897,3508.8,3508.1,14.10587448]
[1641435640630,0.345,3509.4,3508.3,14.10587448]
[1641435641028,0.01364217,3509.3,3508.3,14.10587448]
[1641435641430,0.01307374,3509.2,3508.3,14.10587448]
[1641435641630,0.01307374,3509.2,3508.5,0.71236]
[1641435641832,0.01250532,3509.1,3508.9,1.08321869]
[1641435642029,0.01250532,3509.1,3509.0,14.10587448]
[1641435642231,6.17,3509.6,3509.0,14.10587448]
[1641435642534,0.01477901,3509.5,3509.0,14.10587448]
[1641435642933,0.01421059,3509.4,3509.0,14.10587448]
[1641435643130,0.01421059,3509.4,3509.3,1.14130118]
[1641435643331,6.17,3509.6,3509.3,1.14130118]
[1641435643531,6.17,3509.6,3509.4,14.10587448]
[1641435643753,0.01477901,3509.5,3509.4,14.10587448]
[1641435644856,0.01477901,3509.5,3509.3,1.14130118]
[1641435645060,0.01477901,3509.5,3509.3,17.72130118]
[1641435645255,0.01421059,3509.4,3509.3,17.72130118]
[1641435648007,0.01421059,3509.4,3509.3,1.14130118]
[1641435648608,0.01421059,3509.4,3509.3,16.58]
[1641435648809,0.01421059,3509.4,3508.7,0.03049079]
[1641435649008,0.01286678,3509.2,3508.7,0.03049079]
[1641435649209,0.345,3509.1,3508.7,0.03049079]
[1641435649411,0.35750532,3509.1,3508.7,0.03049079]
[1641435649609,0.0119369,3509.0,3507.7,16.65126]
[1641435649812,0.345,3508.9,3508.7,1.17558744]
[1641435650009,0.35636847,3508.9,3508.7,1.17558744]
[1641435650212,0.01080005,3508.8,3508.7,17.75558744]
[1641435651464,0.01080005,3508.8,3508.7,1.17558744]
[1641435654261,0.01080005,3508.8,3508.7,17.75558744]
[1641435654661,0.345,3509.4,3509.3,1.17395155]
[1641435654902,0.345,3509.4,3508.4,16.58]
[1641435655106,0.00284212,3509.3,3508.4,16.58]
[1641435655302,0.00284212,3509.3,3508.5,0.00170527]
[1641435655508,0.00227369,3509.2,3508.5,0.00170527]
[1641435655906,0.00170527,3509.1,3508.5,0.00170527]
[1641435656109,0.00170527,3509.1,3509.0,1.30779738]
[1641435656307,0.345,3509.4,3509.0,1.30779738]
[1641435656706,0.00284212,3509.3,3509.0,1.30779738]
[1641435657109,0.00227369,3509.2,3509.0,1.30779738]
[1641435657309,0.00227369,3509.2,3509.0,17.88779738]
[1641435657511,0.00170527,3509.1,3509.0,17.88779738]
[1641435663714,0.00170527,3509.1,3509.0,18.18779738]
[1641435663917,0.00170527,3509.1,3509.0,18.52680349]
[1641435664115,0.00170527,3509.1,3509.0,19.8815031]
[1641435664316,0.00170527,3509.1,3509.0,19.88038877]
[1641435665315,0.00170527,3509.1,3509.0,19.84249699]
[1641435665921,0.00170527,3509.1,3509.0,19.8769292]
[1641435666155,0.00170527,3509.1,3509.0,19.84249699]
[1641435666861,0.00170527,3509.1,3508.9,0.85475]
[1641435667059,0.01246499,3509.0,3508.5,0.00170527]
[1641435667259,0.01360184,3509.0,3508.5,0.00170527]
[1641435667459,0.01360184,3509.0,3508.1,0.00397897]
[1641435667659,11.3312,3510.6,3510.0,0.03716444]
[1641435667861,3.7976,3510.4,3510.0,0.03716444]
[1641435668058,9.9062,3510.6,3510.0,16.61716444]
[1641435668059,6.17,3510.6,3510.0,16.61716444]
[1641435668462,0.00795792,3510.4,3510.0,17.32926444]
[1641435668860,0.0073895,3510.3,3510.0,17.32926444]
[1641435669258,0.00682108,3510.2,3510.0,17.32926444]
[1641435669759,0.00625265,3510.1,3510.0,17.32926444]
[1641435670007,0.00625265,3510.1,3510.0,0.74926444]
[1641435671014,0.00625265,3510.1,3510.0,0.03716444]
[1641435671508,5.00625265,3510.1,3510.0,0.03716444]
[1641435672712,6.37252794,3510.1,3510.0,0.03716444]
[1641435672912,8.50767629,3510.1,3510.0,0.03716444]
[1641435673113,6.71752794,3510.1,3510.0,0.03716444]
[1641435673313,6.71752794,3510.1,3508.3,3.9179]
[1641435673314,8.15,3510.0,3508.3,3.9179]
[1641435673660,0.35011581,3509.9,3508.6,0.0022737]
[1641435674058,0.7124657,3509.5,3508.6,0.0022737]
[1641435674257,0.345,3509.4,3508.6,0.0022737]
[1641435674457,1.23299761,3509.3,3508.7,16.58]
[1641435674660,1.57970288,3509.3,3508.6,0.0022737]
[1641435674863,0.00113684,3509.2,3508.8,0.00113685]
[1641435675060,0.00113684,3509.2,3508.5,0.00284212]
[1641435675964,1.27269345,3508.6,3508.5,0.00284212]
[1641435676766,0.00113684,3509.2,3508.5,0.00284212]
[1641435678112,1.43299062,3508.7,3508.5,0.00284212]
[1641435679013,1.43299062,3508.7,3508.1,0.00511582]
[1641435679014,2.40584337,3508.6,3508.1,0.00511582]
[1641435679313,2.40584337,3508.6,3506.9,4.98111]
[1641435679314,3.60724337,3508.6,3507.1,0.72350005]
[1641435679514,7.54594337,3508.6,3507.1,0.72350005]
[1641435679716,7.54594337,3508.6,3507.2,0.01023163]
[1641435680715,8.25867337,3508.6,3507.2,0.01023163]
[1641435680918,0.7127441,3508.0,3507.2,0.01023163]
[1641435681175,1.3466764,3507.7,3507.2,0.01023163]
[1641435681668,1.3466764,3507.7,3506.9,0.07128]
[1641435682171,1.3466764,3507.7,3507.1,16.58]
[1641435682471,1.3466764,3507.7,3507.2,0.01023163]
[1641435682472,1.2966764,3507.7,3507.2,0.01023163]
[1641435683569,1.2966764,3507.7,3507.0,1.43668847]
[1641435683769,0.345,3507.9,3507.1,0.71269]
[1641435683975,1.2399,3508.3,3507.1,0.71269]
[1641435683976,1.2399,3508.3,3507.8,1.05282872]
[1641435684172,0.345,3508.4,3507.9,16.58]
[1641435684371,3.9387,3508.6,3507.9,16.58625266]
[1641435684571,8.1752,3508.9,3508.0,0.00568424]
[1641435684770,4.5713,3508.9,3508.0,0.00568424]
[1641435685007,1.50480887,3508.4,3508.0,0.00568424]
[1641435685624,1.50480887,3508.4,3508.0,0.71821424]
[1641435686010,1.50480887,3508.4,3508.1,0.00511582]
[1641435686812,1.4857,3508.9,3508.1,0.00511582]
[1641435687011,1.4857,3508.9,3508.1,16.58511582]
[1641435687214,0.345,3508.9,3508.1,17.29762582]
[1641435687414,1.345,3508.9,3508.2,0.00454739]
[1641435687813,1.645,3508.9,3508.2,0.00454739]
[1641435688012,0.345,3508.9,3508.4,1.12651433]
[1641435688414,0.345,3508.9,3508.5,0.00284212]
[1641435689455,1.5034214,3508.8,3508.5,0.00284212]
[1641435689862,1.5034214,3508.8,3508.2,0.00454739]
[1641435691263,1.5034214,3508.8,3508.1,0.30511582]
[1641435691463,1.5034214,3508.8,3508.2,0.00454739]
[1641435692613,1.5034214,3508.8,3508.1,0.00511582]
[1641435692816,1.5034214,3508.8,3508.3,0.00397897]
[1641435693014,1.5034214,3508.8,3508.1,0.00511582]
[1641435695315,0.345,3508.9,3508.2,0.4987517]
[1641435695720,3.6985,3509.1,3508.3,0.00397897]
[1641435696018,1.22503684,3509.2,3508.3,16.61828555]
[1641435696019,0.00113684,3509.2,3508.3,16.61828555]
[1641435696264,0.00113684,3509.2,3508.5,16.58]
[1641435696465,0.00113684,3509.2,3508.7,0.07124]
[1641435696870,0.00113684,3509.2,3508.8,0.00113685]
[1641435697666,11.17,3509.0,3508.8,0.71346685]
[1641435697869,11.17,3509.0,3508.8,17.33240158]
[1641435700311,5.0,3509.0,3508.8,17.33240158]
[1641435701514,5.0,3509.0,3508.8,17.63240158]
[1641435701914,5.0,3509.0,3508.9,0.3]
[1641435702116,5.0,3509.0,3508.9,16.88]
[1641435702621,5.0,3509.0,3508.9,16.91636765]
[1641435704263,5.0,3509.0,3508.9,17.21636765]
[1641435705367,5.0,3509.0,3508.9,17.18]
[1641435711760,5.0,3509.0,3508.9,0.3]
[1641435712159,5.0,3509.0,3508.8,0.00113685]
[1641435712564,5.0,3509.0,3508.3,0.00397897]
[1641435713168,5.0,3509.0,3508.1,16.65636582]
[1641435713366,5.0,3509.0,3508.2,0.00454739]
[1641435713568,5.0,3509.0,3508.2,0.30454739]
[1641435713768,5.0,3509.0,3508.2,17.38329229]
[1641435714068,5.0,3509.0,3508.3,0.00397897]
[1641435715013,5.0,3509.0,3508.4,0.4987268]
[1641435715309,5.0,3509.0,3508.5,0.00284212]
[1641435717311,5.0,3509.0,3508.4,0.00341055]
[1641435717712,5.0,3509.0,3508.4,16.58341055]
[1641435717912,5.0,3509.0,3508.6,1.13459113]
[1641435718316,5.0,3509.0,3508.7,0.00170527]
[1641435719357,5.0,3509.0,3508.8,0.4986599]
[1641435719758,5.0,3509.0,3508.9,0.3]
[1641435720563,5.0,3509.0,3508.9,0.33223298]
[1641435724824,5.0,3509.0,3508.9,0.3]
[1641435725023,5.0,3509.0,3508.7,0.30170527]
[1641435725424,5.0,3509.0,3508.8,0.00113685]
[1641435725826,5.0,3509.0,3508.7,0.00170527]
[1641435727267,5.0,3509.0,3508.6,0.0022737]
[1641435727468,1.26915226,3508.7,3508.6,0.0022737]
[1641435727668,1.26915226,3508.7,3508.6,0.0735237]
[1641435728468,5.0,3509.0,3508.6,0.0735237]
[1641435728873,5.0,3509.0,3508.7,0.00170527]
[1641435730020,1.12991377,3508.9,3508.7,0.00170527]
[1641435730822,1.12991377,3508.9,3508.6,0.0022737]
[1641435731429,1.47491377,3508.9,3508.6,0.0022737]
[1641435731923,1.47491377,3508.9,3507.7,0.00738951]
[1641435732925,1.47491377,3508.9,3507.7,0.30738951]
[1641435733326,1.47491377,3508.9,3507.8,0.00682109]
[1641435733758,1.4253243,3508.8,3507.8,0.00682109]
[1641435733961,5.71267,3509.0,3507.8,0.00682109]
[1641435733962,1.15763676,3508.1,3507.8,0.00682109]
[1641435734364,1.15763676,3508.1,3507.8,0.30682109]
[1641435734564,1.15763676,3508.1,3507.8,0.60682109]
[1641435734765,1.15763676,3508.1,3507.9,0.00625266]
[1641435736569,1.15763676,3508.1,3507.9,16.88625266]
[1641435736766,0.345,3508.5,3507.9,0.30625266]
[1641435736966,0.345,3508.5,3508.0,0.00568424]
[1641435737414,0.345,3508.5,3508.0,0.30568424]
[1641435737613,0.345,3508.5,3507.9,0.00625266]
[1641435737814,1.34653253,3508.2,3508.1,0.00511582]
[1641435738015,1.34653253,3508.2,3507.9,0.30625266]
[1641435738214,1.34653253,3508.2,3508.0,0.00568424]
[1641435738816,1.34653253,3508.2,3507.9,0.00625266]
[1641435739015,1.34653253,3508.2,3508.0,0.00568424]
[1641435739219,1.34653253,3508.2,3507.9,0.00625266]
[1641435739416,1.34653253,3508.2,3508.0,0.00568424]
[1641435739715,1.34653253,3508.2,3507.9,0.00625266]
[1641435739917,0.345,3508.5,3508.0,0.4988081]
[1641435740118,0.345,3508.5,3508.1,16.58]
[1641435740318,1.2165,3508.9,3508.2,16.58]
[1641435740519,1.2165,3508.9,3508.2,0.04025386]
[1641435740718,1.2165,3508.9,3508.3,0.00397897]
[1641435741164,1.20853676,3508.8,3508.2,16.58454739]
[1641435741366,1.20853676,3508.8,3508.4,0.71248]
[1641435741566,1.20853676,3508.8,3508.4,1.01248]
[1641435741871,1.20853676,3508.8,3508.5,0.00284212]
[1641435742068,2.85,3508.7,3508.1,0.997448]
[1641435742268,1.20853676,3508.8,3507.6,0.0336335]
[1641435742269,1.20853676,3508.8,3508.0,0.71255]
[1641435742569,0.00113685,3508.7,3508.2,0.00170527]
[1641435742968,0.00113685,3508.7,3507.8,0.00397897]
[1641435743167,0.00113685,3508.7,3507.9,16.58]
[1641435743567,0.00113685,3508.7,3508.0,0.00284212]
[1641435743768,0.00113685,3508.7,3508.3,0.4987614]
[1641435744570,0.00113685,3508.7,3508.0,0.00284212]
[1641435744771,0.00113685,3508.7,3508.4,0.75154779]
[1641435745018,0.00113685,3508.7,3508.5,16.61424409]
[1641435745518,0.00113685,3508.7,3508.5,16.58]
[1641435745718,0.00113685,3508.7,3508.5,16.61617538]
[1641435745919,0.00113685,3508.7,3508.6,17.91900233]
[1641435746331,0.00113685,3508.7,3508.6,18.24964262]
[1641435746527,0.00113685,3508.7,3508.6,18.25666996]
[1641435746731,5.0,3509.0,3508.6,18.25666996]
[1641435746930,5.0,3509.0,3508.8,0.71239]
[1641435747228,0.00113684,3508.9,3508.8,1.01239]
[1641435748027,0.00113684,3508.9,3508.8,17.92820471]
[1641435748228,0.00113684,3508.9,3508.8,17.89239]
[1641435749178,0.00113684,3508.9,3508.8,18.89239]
[1641435749581,3.147,3510.4,3509.8,0.07122]
[1641435749777,3.147,3510.4,3509.5,0.14243]
[1641435749778,1.147,3510.4,3509.9,17.29217]
[1641435749979,0.00795793,3510.3,3509.9,17.59217]
[1641435750381,0.00738951,3510.2,3509.9,17.59217]
[1641435750880,0.00682108,3510.1,3509.9,17.59217]
[1641435751279,0.00625266,3510.0,3509.9,17.59217]
[1641435752083,0.00625266,3510.0,3509.9,0.3]
[1641435752279,0.00625266,3510.0,3509.8,0.3]
[1641435752510,0.00625266,3510.0,3509.6,17.18]
[1641435752714,0.00568424,3509.9,3509.6,17.18]
[1641435752914,0.00568424,3509.9,3509.7,0.07122]
[1641435753113,2.13506507,3510.7,3509.7,0.07122]
[1641435753114,0.00511581,3509.8,3509.7,0.07122]
[1641435753714,0.00511581,3509.8,3509.7,0.71218]
[1641435753914,0.00511581,3509.8,3509.7,1.31218]
[1641435754918,0.00511581,3509.8,3509.7,17.89218]
[1641435756780,0.00511581,3509.8,3509.7,17.59218]
[1641435757185,0.00511581,3509.8,3509.7,18.89218]
[1641435757581,0.00511581,3509.8,3509.7,17.89218]
[1641435758187,0.00511581,3509.8,3509.7,17.92721655]
[1641435758588,0.00511581,3509.8,3509.7,0.63503655]
[1641435758987,0.00511581,3509.8,3509.7,0.3]
[1641435759387,0.00511581,3509.8,3509.7,0.33951677]
[1641435760017,0.00511581,3509.8,3509.7,16.91951677]
[1641435760415,0.00511581,3509.8,3509.7,0.33951677]
[1641435763217,0.00511581,3509.8,3509.7,16.91951677]
[1641435764071,0.00511581,3509.8,3509.7,0.33951677]
[1641435764270,0.00511581,3509.8,3509.1,0.3561047]
[1641435764471,0.00511581,3509.8,3509.0,16.58]
[1641435764670,0.01281462,3509.5,3509.0,16.58]
[1641435765071,0.00284212,3509.4,3509.0,16.58]
[1641435765274,1.09279759,3509.2,3509.0,16.58]
[1641435765672,0.00113685,3509.1,3508.5,2.47253806]
[1641435765873,0.00113685,3509.1,3508.6,0.3]
[1641435766073,0.00113685,3509.1,3508.6,0.00170527]
[1641435766272,0.00113685,3509.1,3508.7,0.00113684]
[1641435766474,0.00113685,3509.1,3508.6,0.00170527]
[1641435769421,2.00113685,3509.1,3508.6,0.00170527]
[1641435769619,0.345,3509.0,3508.6,0.00170527]
[1641435769819,0.345,3509.0,3507.1,8.88770706]
[1641435769820,2.0,3508.9,3508.2,0.00397896]
[1641435770118,0.01244003,3508.7,3507.5,0.00795793]
[1641435770322,0.345,3508.6,3507.5,0.00795793]
[1641435770520,1.30324442,3508.0,3507.3,1.44624946]
[1641435770719,0.345,3508.0,3507.3,1.44624946]
[1641435770919,0.345,3508.0,3507.4,16.58852635]
[1641435771167,0.345,3508.9,3507.4,16.61877566]
[1641435771465,7.36313685,3509.1,3507.5,0.06165153]
[1641435771865,1.2100881,3508.8,3508.2,1.40441793]
[1641435772064,1.2100881,3508.8,3508.2,0.6]
[1641435772267,1.2100881,3508.8,3508.3,16.65466054]
[1641435772465,1.2100881,3508.8,3508.4,0.71244]
[1641435772665,1.2100881,3508.8,3508.4,0.71528212]
[1641435772868,1.2100881,3508.8,3508.5,0.00227369]
[1641435773872,0.00113685,3509.1,3508.5,0.00227369]
[1641435774272,0.00113685,3509.1,3508.4,0.3]
[1641435774472,0.00113685,3509.1,3508.5,0.00227369]
[1641435774919,1.38580047,3509.1,3508.5,1.82094889]
[1641435775119,1.38580047,3509.1,3508.5,0.37352369]
[1641435775320,1.38580047,3509.1,3508.6,0.00170527]
[1641435780375,3.4612752,3509.1,3508.6,0.00170527]
[1641435780579,3.47422594,3509.1,3508.5,0.00227369]
[1641435780776,3.47422594,3509.1,3508.1,0.00454739]
[1641435781077,1.38580047,3509.1,3508.1,0.00454739]
[1641435781275,1.38580047,3509.1,3508.2,1.26109269]
[1641435781676,1.38580047,3509.1,3508.3,0.00341054]
[1641435782176,1.38580047,3509.1,3508.5,1.44096089]
[1641435782419,0.00113685,3509.1,3508.6,16.58]
[1641435782613,0.00113685,3509.1,3508.6,17.25294527]
[1641435782812,0.00113685,3509.1,3508.7,0.00113684]
[1641435783614,1.12154973,3509.0,3508.7,0.00113684]
[1641435784412,1.12154973,3509.0,3508.6,0.00170527]
[1641435786762,1.12154973,3509.0,3508.5,0.00227369]
[1641435787365,1.12154973,3509.0,3508.4,0.00284212]
[1641435787565,1.12154973,3509.0,3508.4,0.30284212]
[1641435787765,1.12154973,3509.0,3508.4,0.3]
[1641435787967,1.12154973,3509.0,3508.5,0.00227369]
[1641435788471,1.12154973,3509.0,3508.3,0.00341054]
[1641435788771,1.12154973,3509.0,3508.3,0.04155209]
[1641435789166,1.12154973,3509.0,3508.5,0.71241]
[1641435789368,1.12154973,3509.0,3508.5,1.01241]
[1641435789570,1.12154973,3509.0,3508.6,0.30170527]
[1641435790009,1.12154973,3509.0,3508.7,0.00113684]
[1641435790509,0.00113685,3509.1,3508.7,0.00113684]
[1641435791411,1.20745656,3508.9,3508.7,0.00113684]
[1641435792017,1.20745656,3508.9,3508.6,0.00170527]
[1641435792219,1.20745656,3508.9,3508.4,0.00284212]
[1641435793117,1.20745656,3508.9,3508.4,0.75281569]
[1641435793318,1.20745656,3508.9,3508.5,0.07125]
[1641435793517,1.20745656,3508.9,3508.5,0.07352369]
[1641435793763,1.20745656,3508.9,3508.6,0.00170527]
[1641435793959,0.00113685,3509.1,3508.6,16.61863453]
[1641435794166,0.00113685,3509.1,3508.8,0.71237]
[1641435794363,0.00113685,3509.1,3508.9,16.65124]
[1641435794564,0.00113685,3509.1,3509.0,16.58]
[1641435795064,0.00113685,3509.1,3509.0,17.76795915]
[1641435795665,8.6371,3510.1,3509.0,17.76795915]
[1641435795866,8.6371,3510.1,3509.1,16.58]
[1641435796066,0.00625266,3510.0,3509.1,17.18]
[1641435796269,2.50625266,3510.0,3509.1,17.28601239]
[1641435796464,0.00568424,3509.9,3509.1,17.21478239]
[1641435796665,0.00568424,3509.9,3509.3,1.7804161]
[1641435796865,2.5,3510.0,3509.4,1.34886356]
[1641435796866,0.00511581,3509.8,3509.4,1.34886356]
[1641435797066,0.00511581,3509.8,3509.5,0.0358632]
[1641435797410,0.00454739,3509.7,3509.6,17.88151688]
[1641435797610,0.00454739,3509.7,3509.6,19.44911454]
[1641435797814,8.17985539,3510.5,3509.7,16.57545261]
[1641435798013,8.17985539,3510.5,3510.0,0.71207]
[1641435798314,0.00397896,3510.4,3510.1,1.14176179]
[1641435798715,0.00341054,3510.3,3510.1,1.14176179]
[1641435799119,0.00284212,3510.2,3510.1,17.7172144]
[1641435799318,0.00284212,3510.2,3510.1,16.57545261]
[1641435799516,0.00284212,3510.2,3510.0,1.31207]
[1641435799720,0.00284212,3510.2,3510.0,0.6]
[1641435799918,15.77509539,3510.5,3509.8,0.3]
[1641435799919,0.00227369,3510.1,3509.8,0.3]
[1641435800123,0.00227369,3510.1,3510.0,0.3]
[1641435800317,0.00170527,3510.0,3509.7,18.3019297]
[1641435800518,0.00227369,3510.1,3509.7,0.78338]
[1641435800820,0.00170527,3510.0,3509.7,17.29216]
[1641435801267,0.00113685,3509.9,3509.7,17.29216]
[1641435802268,0.00113685,3509.9,3509.7,17.59216]
[1641435802466,0.00113685,3509.9,3509.7,1.01216]
[1641435802668,0.00113685,3509.9,3509.7,0.3]
[1641435802867,0.00113685,3509.9,3509.5,0.6]
[1641435803168,0.00113685,3509.9,3509.5,0.3]
[1641435803368,0.00113685,3509.9,3509.2,2.02441]
[1641435803568,0.00113685,3509.9,3509.3,16.58]
[1641435803768,1.42052459,3509.4,3509.3,16.58227369]
[1641435803971,1.42052459,3509.4,3509.3,16.58]
[1641435804168,0.00113685,3509.9,3509.3,16.58]
[1641435804370,0.00113685,3509.9,3509.3,17.29224]
[1641435804568,0.00113685,3509.9,3509.4,0.00170527]
[1641435804769,0.00113685,3509.9,3509.4,16.95293527]
[1641435805016,1.0965676,3509.7,3509.4,16.95293527]
[1641435805213,1.0965676,3509.7,3509.5,0.00113685]
[1641435805612,1.0965676,3509.7,3509.5,16.58113685]
[1641435805812,0.00113685,3509.9,3509.6,0.07122]
[1641435806617,0.00113685,3509.9,3509.7,16.58]
[1641435806812,0.00113685,3509.9,3509.7,16.88]
[1641435807215,0.00113685,3509.9,3509.8,1.0]
[1641435807415,0.00113685,3509.9,3509.8,17.58]
[1641435807614,0.00113685,3509.9,3509.8,16.88]
[1641435807814,0.00113685,3509.9,3509.8,16.91565339]
[1641435808420,0.00113685,3509.9,3509.8,16.88]
[1641435808862,0.00113685,3509.9,3509.8,0.3]
[1641435809262,0.00113685,3509.9,3509.7,16.88]
[1641435812270,0.00113685,3509.9,3509.8,1.06987185]
[1641435812519,0.00113685,3509.9,3509.8,18.24987185]
[1641435812915,0.00113685,3509.9,3509.8,17.18]
[1641435813324,0.00113685,3509.9,3509.8,17.21334944]
[1641435814528,0.00113685,3509.9,3509.8,18.29247008]
[1641435814922,6.17,3510.4,3509.8,18.29247008]
[1641435815127,6.17,3510.4,3510.0,0.07121]
[1641435815323,0.00227369,3510.3,3510.0,16.65121]
[1641435815524,0.00227369,3510.3,3510.0,17.28420313]
[1641435815724,0.00170527,3510.2,3510.0,17.28972773]
[1641435815923,0.00170527,3510.2,3510.1,16.58]
[1641435816158,6.17,3510.4,3510.1,16.58]
[1641435816563,0.00227369,3510.3,3510.1,16.58]
[1641435816761,0.00227369,3510.3,3510.1,17.29209]
[1641435816962,0.00170527,3510.2,3510.1,17.29209]
[1641435817762,6.12170527,3510.4,3510.1,17.29209]
[1641435818368,8.17985539,3510.5,3510.1,17.29209]
[1641435818765,0.00113684,3510.4,3510.1,17.29209]
[1641435821319,0.00113684,3510.4,3510.1,17.32279741]
[1641435821518,0.00113684,3510.4,3510.2,0.03793346]
[1641435821718,0.00113684,3510.4,3510.2,1.46513526]
[1641435822118,0.00113684,3510.4,3510.3,16.58]
[1641435822322,0.00113684,3510.4,3510.3,16.61811618]
[1641435822518,0.00113684,3510.4,3510.3,16.91811618]
[1641435824964,0.00113684,3510.4,3510.3,23.91811618]
[1641435825160,0.00113684,3510.4,3510.3,23.91118006]
[1641435825361,0.00113684,3510.4,3510.3,16.91250447]
[1641435830024,8.17985539,3510.5,3510.3,16.91250447]
[1641435830223,6.1485806,3511.8,3511.4,24.73]
[1641435830432,6.1485806,3511.8,3511.7,4.7440069]
[1641435830721,2.26227317,3512.4,3511.8,16.58]
[1641435830722,6.17,3512.2,3511.8,16.58]
[1641435831166,6.17,3512.2,3511.8,17.84568394]
[1641435831772,6.17349094,3512.2,3512.0,16.58]
[1641435831969,6.17349094,3512.2,3512.0,16.88]
[1641435832169,6.12349094,3512.2,3512.0,16.88]
[1641435833572,6.07349094,3512.2,3512.0,16.88]
[1641435834373,6.17,3512.2,3512.0,16.88]
[1641435835425,11.17,3512.2,3512.0,16.88]
[1641435840379,5.0,3512.2,3512.0,16.88]
[1641435844028,5.0,3512.2,3512.0,16.95117]
[1641435850010,5.0,3512.2,3512.0,0.3]
[1641435850211,5.0,3512.2,3511.9,0.3]
[1641435850411,5.0,3512.2,3511.6,1.8354829]
[1641435850814,5.0,3512.2,3511.6,2.1913205]
[1641435851013,5.0,3512.2,3511.9,0.71167]
[1641435851217,5.0,3512.2,3511.9,0.85401]
[1641435852418,0.01280327,3512.0,3511.1,3.5]
[1641435852618,0.01280327,3512.0,3511.3,0.07119]
[1641435852823,0.00852636,3511.9,3511.3,0.07119]
[1641435853023,0.00852636,3511.9,3511.0,1.4505824]
[1641435853219,0.01280327,3512.0,3511.0,1.4505824]
[1641435853220,0.00795793,3511.8,3511.0,1.4505824]
[1641435853667,0.00738951,3511.7,3511.1,0.3]
[1641435853870,0.00738951,3511.7,3511.1,0.44237]
[1641435854072,0.00682109,3511.6,3511.2,1.44814029]
[1641435854475,0.00625266,3511.5,3511.2,1.44814029]
[1641435854672,0.00625266,3511.5,3511.2,2.94290029]
[1641435854872,0.00568424,3511.4,3511.2,1.49476]
[1641435855271,2.13755695,3511.8,3511.2,1.49476]
[1641435855272,0.00511582,3511.3,3511.2,1.49476]
[1641435857274,0.00511582,3511.3,3511.2,1.52724403]
[1641435857521,0.00511582,3511.3,3511.2,2.9061278]
[1641435857924,0.00511582,3511.3,3511.2,3.2061278]
[1641435858126,0.00511582,3511.3,3511.2,3.17364377]
[1641435858325,0.01280327,3512.0,3511.3,7.85]
[1641435858525,6.245,3512.2,3511.6,0.07118]
[1641435858729,0.00341054,3511.9,3511.7,1.14896771]
[1641435859025,0.00284211,3511.8,3511.7,1.14896771]
[1641435859424,0.00284211,3511.8,3511.7,1.44896771]
[1641435859824,0.00284211,3511.8,3511.4,0.44236]
[1641435860026,0.00284211,3511.8,3511.4,0.14236]